bitfinex/quotes_SOLUSD_20240620
["timestamp","ask_amount","ask_price","bid_price","bid_amount"]
[1718884128048,6.0535,139.8,139.75,0.34]
[1718884128442,6.0535,139.8,139.76,0.51]
[1718884128751,6.0535,139.8,139.76,0.17]
[1718884128956,6.0535,139.8,139.73,0.17]
[1718884129168,20.0,139.79,139.73,0.68]
[1718884129336,20.0,139.79,139.73,0.17]
[1718884129541,20.0,139.79,139.68,0.17]
[1718884129754,20.0,139.79,139.68,0.34]
[1718884130149,20.0,139.79,139.66,15.1199]
[1718884130356,15.7626,139.78,139.66,15.1199]
[1718884130569,20.0,139.77,139.68,7.1588]
[1718884130868,20.0,139.77,139.7,7.1581]
[1718884131066,20.0,139.77,139.66,33.0197]
[1718884131373,20.0,139.77,139.72,7.1571]
[1718884131849,20.0,139.77,139.74,7.156]
[1718884132271,20.0,139.77,139.75,7.1555]
[1718884132582,20.0,139.77,139.73,0.51]
[1718884132965,20.0,139.77,139.71,7.1575]
[1718884133168,20.0,139.77,139.72,0.34]
[1718884133581,20.0,139.77,139.72,0.17]
[1718884133787,20.0,139.77,139.71,0.34]
[1718884134387,20.0,139.77,139.68,7.1591]
[1718884134680,15.0,139.77,139.68,7.159]
[1718884135176,15.0,139.77,139.69,7.1586]
[1718884135380,16.2032,139.75,139.61,20.0]
[1718884135580,6.1959,139.76,139.58,46.3281]
[1718884135581,6.1959,139.74,139.58,46.3281]
[1718884135800,22.3991,139.72,139.6,7.1633]
[1718884136098,0.51,139.71,139.6,7.1633]
[1718884136272,0.51,139.71,139.61,7.1626]
[1718884136594,0.51,139.71,139.59,7.1633]
[1718884136780,20.51,139.71,139.59,7.1633]
[1718884137097,20.51,139.71,139.6,0.68]
[1718884137473,20.51,139.71,139.59,7.1633]
[1718884137789,20.51,139.71,139.6,7.1631]
[1718884138191,20.51,139.71,139.61,7.1626]
[1718884138584,20.51,139.71,139.62,7.1622]
[1718884139593,20.0,139.71,139.63,0.34]
[1718884139893,20.0,139.71,139.64,7.3312]
[1718884140193,20.0,139.71,139.65,7.1606]
[1718884140371,20.0,139.71,139.64,0.17]
[1718884140574,20.0,139.71,139.63,0.17]
[1718884141110,15.2619,139.69,139.55,64.2415]
[1718884141292,6.5526,139.68,139.55,17.9134]
[1718884141490,26.5526,139.68,139.55,17.9134]
[1718884141694,26.5526,139.68,139.59,7.1635]
[1718884142398,26.5526,139.68,139.58,7.1641]
[1718884142903,26.5526,139.68,139.59,0.17]
[1718884143070,16.585,139.66,139.52,24.3294]
[1718884143268,20.0,139.65,139.52,6.4114]
[1718884143474,20.0,139.65,139.58,7.164]
[1718884143695,20.0,139.65,139.58,7.1642]
[1718884143893,20.0,139.65,139.53,21.55]
[1718884144070,20.0,139.65,139.55,17.9136]
[1718884144271,20.0,139.65,139.57,17.9117]
[1718884144510,20.0,139.65,139.53,21.55]
[1718884144687,20.0,139.65,139.6,7.1631]
[1718884145001,20.0,139.65,139.61,0.51]
[1718884146110,20.0,139.65,139.61,7.6727]
[1718884146402,20.0,139.65,139.63,0.17]
[1718884146587,20.0,139.65,139.63,0.51]
[1718884147307,6.5526,139.68,139.66,7.16]
[1718884147516,15.3049,139.7,139.66,7.16]
[1718884148435,15.3049,139.7,139.65,0.17]
[1718884148436,15.3049,139.7,139.65,7.3305]
[1718884148811,20.0,139.69,139.65,7.3305]
[1718884149938,6.4688,139.71,139.66,0.34]
[1718884150128,6.4688,139.71,139.65,0.17]
[1718884150605,6.4688,139.71,139.65,0.34]
[1718884150809,6.4688,139.71,139.66,0.17]
[1718884151146,6.4688,139.71,139.66,0.34]
[1718884151331,20.0,139.7,139.66,0.34]
[1718884151639,20.0,139.7,139.67,0.34]
[1718884151827,16.1972,139.73,139.68,7.4988]
[1718884152006,16.1972,139.73,139.69,0.17]
[1718884152007,20.0,139.72,139.69,0.17]
[1718884152336,20.0,139.72,139.69,7.3283]
[1718884152513,20.0,139.72,139.69,0.17]
[1718884153231,11.57142094,139.77,139.69,0.17]
[1718884153431,21.598,139.78,139.74,0.17]
[1718884153637,21.598,139.78,139.74,0.34]
[1718884154452,21.56858,139.78,139.74,0.34]
[1718884154842,21.56858,139.78,139.69,17.8955]
[1718884155140,21.56858,139.78,139.72,7.1569]
[1718884155342,21.56858,139.78,139.73,0.17]
[1718884156234,21.56858,139.78,139.71,7.1575]
[1718884156423,20.0,139.77,139.69,7.1582]
[1718884156630,20.0,139.77,139.7,7.1577]
[1718884157256,20.0,139.77,139.69,7.1586]
[1718884157954,20.0,139.77,139.7,0.34]
[1718884158325,20.0,139.77,139.62,20.0]
[1718884158534,20.0,139.77,139.61,43.8512]
[1718884159130,20.0,139.77,139.63,51.79]
[1718884159342,20.0,139.77,139.73,7.1565]
[1718884159643,20.0,139.77,139.72,7.1568]
[1718884159943,6.0701,139.81,139.73,0.34]
[1718884160130,6.0701,139.81,139.75,0.17]
[1718884160446,6.0701,139.81,139.75,7.4954]
[1718884160645,6.0701,139.81,139.76,0.34]
[1718884161242,20.0,139.8,139.73,7.1565]
[1718884161448,20.0,139.8,139.74,7.666]
[1718884162141,20.0,139.8,139.75,0.17]
[1718884162539,20.0,139.8,139.75,7.3252]
[1718884162732,20.0,139.8,139.76,0.17]
[1718884162941,20.0,139.8,139.73,0.17]
[1718884163148,20.0,139.8,139.74,7.1561]
[1718884163961,6.6299,139.85,139.75,0.17]
[1718884164127,6.6299,139.85,139.76,0.17]
[1718884164329,20.0,139.84,139.77,0.17]
[1718884164558,20.0,139.84,139.77,0.68]
[1718884165131,20.0,139.84,139.77,7.8345]
[1718884165549,20.0,139.84,139.77,0.17]
[1718884165730,20.0,139.84,139.75,7.1552]
[1718884166137,20.0,139.84,139.76,7.155]
[1718884166344,20.0,139.84,139.75,7.1556]
[1718884166651,20.0,139.84,139.61,258.6]
[1718884166652,6.0724,139.82,139.61,258.6]
[1718884166857,20.0,139.81,139.72,7.157]
[1718884167042,20.0,139.81,139.72,7.1571]
[1718884168350,20.0,139.81,139.74,7.1557]
[1718884168526,20.0,139.81,139.73,17.8915]
[1718884168730,20.0,139.81,139.75,7.1554]
[1718884169156,20.0,139.81,139.76,7.325]
[1718884169349,20.0,139.81,139.77,7.3241]
[1718884169530,20.0,139.81,139.78,0.34]
[1718884169733,20.0,139.81,139.78,7.6636]
[1718884169936,6.0724,139.82,139.78,7.6638]
[1718884170157,6.0724,139.82,139.78,0.34]
[1718884170360,6.0724,139.82,139.78,7.494]
[1718884170667,6.0724,139.82,139.77,7.4943]
[1718884170964,6.0724,139.82,139.77,0.34]
[1718884171144,20.0,139.81,139.77,0.34]
[1718884171458,20.0,139.81,139.77,0.17]
[1718884172032,20.0,139.81,139.73,0.17]
[1718884172233,20.0,139.81,139.73,0.68]
[1718884172456,20.0,139.81,139.75,7.1556]
[1718884173646,20.0,139.81,139.74,7.1559]
[1718884173851,20.0,139.81,139.73,0.17]
[1718884174249,20.0,139.81,139.71,7.1572]
[1718884174550,20.0,139.81,139.72,7.157]
[1718884174855,20.0,139.81,139.69,33.7949]
[1718884175359,20.0,139.81,139.72,7.1567]
[1718884175544,20.0,139.81,139.73,0.17]
[1718884176355,20.0,139.81,139.73,7.3265]
[1718884176666,20.0,139.81,139.74,0.17]
[1718884176862,20.0,139.81,139.75,7.1552]
[1718884177052,20.0,139.81,139.76,0.34]
[1718884177469,20.0,139.81,139.76,7.4948]
[1718884177980,20.0,139.81,139.78,7.3239]
[1718884178193,20.0,139.81,139.78,0.17]
[1718884178483,20.0,139.81,139.77,7.4945]
[1718884178789,20.0,139.81,139.78,0.17]
[1718884178969,6.0724,139.82,139.78,0.34]
[1718884179165,6.5113,139.86,139.79,0.51]
[1718884179481,6.5113,139.86,139.8,0.51]
[1718884179661,6.5113,139.86,139.82,7.152]
[1718884180156,6.5113,139.86,139.81,7.3223]
[1718884180480,20.0,139.85,139.81,7.3223]
[1718884181154,20.0,139.85,139.81,0.34]
[1718884181788,20.0,139.85,139.81,7.4921]
[1718884181957,20.0,139.85,139.83,0.17]
[1718884182160,20.0,139.85,139.83,0.34]
[1718884182558,20.0,139.85,139.82,0.34]
[1718884182866,20.0,139.85,139.82,0.17]
[1718884183075,20.0,139.85,139.83,0.34]
[1718884183295,20.0,139.85,139.84,0.17]
[1718884183488,6.5113,139.86,139.82,0.34]
[1718884183982,15.4423,139.87,139.83,0.17]
[1718884184188,20.0,139.86,139.83,0.34]
[1718884184359,20.0,139.89,139.85,0.17]
[1718884184781,20.0,139.89,139.87,0.17]
[1718884184987,6.6296,139.9,139.87,0.68]
[1718884185301,15.0531,139.91,139.87,0.68]
[1718884185478,20.0,139.9,139.87,0.68]
[1718884186498,20.0,139.9,139.84,7.1506]
[1718884187199,20.0,139.9,139.86,0.34]
[1718884188199,20.0,139.9,139.87,0.17]
[1718884188605,20.0,139.9,139.86,0.34]
[1718884188905,20.0,139.9,139.87,0.17]
[1718884189314,20.0,139.9,139.87,0.34]
[1718884189501,20.0,139.9,139.88,0.17]
[1718884189892,20.0,139.92,139.88,0.17]
[1718884190215,20.0,139.92,139.88,0.34]
[1718884190397,20.0,139.92,139.87,0.34]
[1718884190588,20.0,139.92,139.88,0.17]
[1718884191008,20.0,139.92,139.88,0.34]
[1718884191901,20.0,139.92,139.88,0.17]
[1718884192104,20.0,139.92,139.87,0.17]
[1718884192520,20.0,139.92,139.88,0.17]
[1718884192728,20.0,139.92,139.87,0.51]
[1718884193422,20.0,139.92,139.88,0.17]
[1718884193594,20.0,139.96,139.88,0.34]
[1718884193798,20.0,139.96,139.9,0.17]
[1718884194019,20.0,139.96,139.9,0.34]
[1718884194217,20.0,139.96,139.89,0.17]
[1718884194422,20.0,139.96,139.86,7.1499]
[1718884194625,20.0,139.96,139.87,0.68]
[1718884195593,20.0,139.96,139.83,41.2004]
[1718884195594,20.0,139.96,139.84,7.1509]
[1718884195797,20.0,139.96,139.79,16.131]
[1718884195798,21.9932,139.94,139.79,16.131]
[1718884196038,20.51,139.93,139.8,7.1527]
[1718884196405,20.51,139.93,139.81,7.1525]
[1718884196605,33.40933506,139.93,139.81,7.1525]
[1718884196807,33.4095827,139.93,139.81,7.1525]
[1718884197012,20.51,139.93,139.82,0.34]
[1718884197214,20.51,139.93,139.82,0.68]
[1718884197618,20.51,139.93,139.8,7.153]
[1718884197812,20.0,139.93,139.79,16.131]
[1718884198020,32.8995827,139.93,139.79,16.131]
[1718884198415,20.0,139.93,139.79,34.0146]
[1718884198724,20.0,139.93,139.82,7.1516]
[1718884198919,20.0,139.93,139.87,0.17]
[1718884199127,20.0,139.93,139.87,0.51]
[1718884199328,20.0,139.93,139.88,0.17]
[1718884199505,20.0,139.93,139.88,7.6587]
[1718884199821,20.0,139.93,139.88,0.51]
[1718884200029,20.0,139.93,139.88,0.17]
[1718884200322,20.0,139.93,139.79,16.131]
[1718884200509,20.0,139.93,139.8,25.8]
[1718884200714,20.0,139.93,139.82,7.1519]
[1718884200915,20.0,139.93,139.8,25.8]
[1718884201534,20.0,139.93,139.84,7.151]
[1718884201835,32.8995827,139.93,139.87,0.17]
[1718884202130,32.89643764,139.93,139.87,0.34]
[1718884202312,32.89643764,139.93,139.88,0.17]
[1718884202513,20.0,139.93,139.88,0.17]
[1718884202810,20.0,139.93,139.84,0.17]
[1718884203013,20.0,139.93,139.8,17.8817]
[1718884203218,20.0,139.93,139.82,7.1517]
[1718884203537,20.0,139.93,139.73,15.65355681]
[1718884203538,20.0,139.93,139.78,27.5936]
[1718884203706,20.0,139.93,139.84,7.1507]
[1718884203906,20.0,139.93,139.83,7.1513]
[1718884204223,20.0,139.93,139.82,7.152]
[1718884204418,20.0,139.93,139.83,0.68]
[1718884204829,20.0,139.93,139.74,21.55]
[1718884204830,22.1783,139.91,139.76,16.049]
[1718884205009,0.34,139.9,139.77,7.1544]
[1718884205332,20.68,139.9,139.77,7.1544]
[1718884206318,23.1432,139.87,139.76,23.204]
[1718884206521,20.51,139.86,139.72,43.6918]
[1718884207030,20.51,139.86,139.76,7.1548]
[1718884207212,20.0,139.86,139.76,7.1549]
[1718884207426,20.0,139.86,139.75,7.1554]
[1718884207746,20.0,139.86,139.74,7.1559]
[1718884207925,0.34,139.85,139.75,7.1553]
[1718884208118,20.0,139.86,139.76,7.1551]
[1718884208728,20.0,139.86,139.73,7.1562]
[1718884208937,20.0,139.86,139.71,7.1575]
[1718884208938,23.0543,139.85,139.71,7.1575]
[1718884209144,20.0,139.84,139.74,7.1559]
[1718884209440,0.17,139.83,139.7,39.9332]
[1718884209743,0.17,139.83,139.72,7.1571]
[1718884210045,21.4826,139.82,139.71,7.1575]
[1718884210341,20.0,139.81,139.68,17.898]
[1718884210525,20.0,139.81,139.7,7.1578]
[1718884210526,20.17,139.81,139.7,7.1578]
[1718884210924,22.5919,139.8,139.69,7.1585]
[1718884211125,20.0,139.79,139.7,7.1581]
[1718884211548,20.0,139.79,139.71,7.1576]
[1718884211717,20.0,139.79,139.7,7.158]
[1718884212039,20.0,139.79,139.71,0.34]
[1718884212263,20.0,139.79,139.71,0.51]
[1718884212461,20.0,139.79,139.71,0.34]
[1718884212761,20.0,139.79,139.67,7.1592]
[1718884212939,22.7346,139.78,139.65,7.1604]
[1718884213138,65.0,139.77,139.66,7.1601]
[1718884213321,65.0,139.77,139.65,7.1605]
[1718884213322,12.90862675,139.76,139.65,7.1605]
[1718884213524,20.0,139.75,139.65,7.1603]
[1718884213725,32.90862675,139.77,139.65,7.1603]
[1718884213924,0.34,139.76,139.65,7.1603]
[1718884214333,0.34,139.76,139.63,16.4868]
[1718884214334,0.34,139.76,139.66,7.1602]
[1718884214753,21.4142,139.75,139.62,24.2239]
[1718884214937,20.0,139.74,139.65,7.1604]
[1718884215245,20.0,139.74,139.62,24.2239]
[1718884215246,20.0,139.74,139.64,7.1611]
[1718884215443,20.0,139.74,139.62,24.2239]
[1718884215638,20.0,139.74,139.62,6.3183]
[1718884215851,20.0,139.74,139.64,7.1612]
[1718884216042,20.0,139.74,139.65,7.1606]
[1718884216243,20.0,139.74,139.62,6.3183]
[1718884216545,20.0,139.74,139.65,0.17]
[1718884216848,20.0,139.74,139.65,0.68]
[1718884217745,20.0,139.74,139.66,7.16]
[1718884218337,20.0,139.74,139.67,7.3295]
[1718884218530,20.0,139.74,139.68,0.17]
[1718884218843,20.0,139.74,139.68,7.329]
[1718884219152,20.0,139.74,139.68,0.17]
[1718884219447,20.0,139.74,139.67,0.17]
[1718884219654,20.0,139.74,139.66,0.51]
[1718884219850,20.0,139.74,139.63,7.1617]
[1718884220059,22.1648,139.73,139.62,7.1619]
[1718884220227,20.0,139.72,139.62,7.1619]
[1718884220934,20.0,139.72,139.61,7.1627]
[1718884221355,0.34,139.71,139.61,7.1627]
[1718884221531,0.34,139.71,139.59,17.9086]
[1718884221735,0.34,139.71,139.62,7.1622]
[1718884222435,20.0,139.72,139.63,0.17]
[1718884222838,20.0,139.72,139.63,0.34]
[1718884223153,20.0,139.72,139.64,0.17]
[1718884223338,20.0,139.72,139.64,7.3308]
[1718884223545,20.0,139.72,139.65,0.51]
[1718884223742,20.0,139.72,139.65,7.6704]
[1718884224051,20.0,139.72,139.65,0.51]
[1718884224576,20.0,139.72,139.66,0.17]
[1718884224852,20.0,139.72,139.67,7.1597]
[1718884225067,20.0,139.72,139.68,0.17]
[1718884225447,20.0,139.72,139.68,7.1592]
[1718884225744,20.0,139.72,139.67,0.17]
[1718884226070,21.9948,139.73,139.66,0.17]
[1718884226439,21.9948,139.73,139.66,7.3301]
[1718884226759,21.9948,139.73,139.66,0.34]
[1718884226929,21.9948,139.73,139.68,0.17]
[1718884227134,21.9948,139.73,139.7,0.17]
[1718884227346,21.9948,139.73,139.7,0.68]
[1718884227543,22.3634,139.79,139.7,0.68]
[1718884227743,22.3634,139.79,139.74,7.1557]
[1718884227959,22.3634,139.79,139.73,0.51]
[1718884228159,22.3634,139.79,139.74,7.4959]
[1718884228336,5.58483229,139.84,139.75,0.17]
[1718884228534,20.0,139.79,139.75,7.4952]
[1718884228752,20.0,139.79,139.76,0.34]
[1718884229050,20.0,139.79,139.74,0.34]
[1718884229259,20.0,139.82,139.74,0.34]
[1718884229561,20.0,139.82,139.75,0.17]
[1718884229867,20.0,139.82,139.74,0.34]
[1718884230566,20.0,139.82,139.73,0.17]
[1718884230753,20.0,139.82,139.76,0.17]
[1718884231265,21.7255,139.83,139.8,7.1527]
[1718884231473,21.7255,139.83,139.79,7.3235]
[1718884231638,21.7255,139.83,139.8,0.17]
[1718884231839,21.7255,139.83,139.79,0.17]
[1718884232070,21.7255,139.83,139.79,0.51]
[1718884232369,21.7255,139.83,139.79,0.17]
[1718884232665,21.7255,139.83,139.78,0.17]
[1718884232880,21.7255,139.83,139.77,7.8345]
[1718884233237,21.7255,139.83,139.79,0.17]
[1718884233464,21.7255,139.83,139.77,7.8344]
[1718884233974,22.8212,139.87,139.81,7.1524]
[1718884234151,20.0,139.86,139.8,7.6628]
[1718884234470,20.0,139.86,139.81,7.3222]
[1718884234649,20.0,139.86,139.82,0.17]
[1718884235141,20.0,139.86,139.81,7.6624]
[1718884235459,20.0,139.86,139.81,0.34]
[1718884236035,20.0,139.86,139.8,0.34]
[1718884236259,20.0,139.86,139.73,21.625]
[1718884236858,20.0,139.86,139.75,7.1556]
[1718884237042,20.0,139.86,139.77,7.1545]
[1718884237943,20.0,139.86,139.75,7.1554]
[1718884238139,20.0,139.86,139.76,7.1549]
[1718884238438,20.0,139.86,139.77,7.1543]
[1718884238962,20.0,139.86,139.73,15.4093]
[1718884239171,20.0,139.86,139.78,17.8851]
[1718884239373,20.0,139.86,139.83,0.17]
[1718884239673,6.6371,139.9,139.8,0.17]
[1718884239839,6.6371,139.9,139.79,0.51]
[1718884240039,6.6371,139.9,139.8,0.17]
[1718884240450,6.6371,139.9,139.83,0.17]
[1718884241078,6.6371,139.9,139.8,7.153]
[1718884241250,20.0,139.89,139.81,0.34]
[1718884241674,15.6361,139.88,139.73,63.4399]
[1718884241962,20.0,139.87,139.73,45.5493]
[1718884242273,20.0,139.87,139.74,41.55]
[1718884242459,20.0,139.87,139.75,17.8885]
[1718884242948,20.0,139.87,139.79,0.17]
[1718884243150,20.0,139.87,139.81,0.17]
[1718884243363,20.0,139.87,139.79,7.1535]
[1718884243670,20.0,139.87,139.75,17.8885]
[1718884243865,6.2855,139.86,139.76,7.1549]
[1718884244066,20.0,139.85,139.77,7.1544]
[1718884244254,20.0,139.85,139.78,7.1539]
[1718884244451,20.0,139.85,139.79,7.3235]
[1718884244653,20.0,139.85,139.81,0.17]
[1718884244871,20.0,139.85,139.82,7.3215]
[1718884245075,20.0,139.85,139.84,0.17]
[1718884245366,20.0,139.85,139.83,0.34]
[1718884245871,20.0,139.85,139.84,0.17]
[1718884246071,15.6361,139.88,139.84,0.17]
[1718884246261,20.0,139.87,139.84,0.34]
[1718884246466,20.0,139.87,139.85,0.34]
[1718884246982,20.0,139.87,139.82,0.17]
[1718884247157,20.0,139.87,139.82,0.68]
[1718884248052,20.0,139.87,139.83,7.1511]
[1718884248256,20.0,139.87,139.84,0.68]
[1718884248660,20.0,139.87,139.84,7.831]
[1718884248968,16.1581,139.92,139.86,0.17]
[1718884249167,20.0,139.91,139.87,0.17]
[1718884249585,20.0,139.91,139.88,0.17]
[1718884249973,20.0,139.92,139.88,0.68]
[1718884250963,20.0,139.92,139.88,0.51]
[1718884251162,20.0,139.92,139.88,0.34]
[1718884251383,20.0,139.92,139.88,0.17]
[1718884251581,20.0,139.92,139.86,0.17]
[1718884251786,20.0,139.92,139.86,0.68]
[1718884252090,20.0,139.92,139.85,0.17]
[1718884252281,20.0,139.92,139.8,15.898]
[1718884252487,20.0,139.92,139.87,7.1494]
[1718884252684,6.2475,139.93,139.8,15.898]
[1718884252984,22.0763,139.96,139.89,7.1481]
[1718884253160,22.0763,139.96,139.83,21.55]
[1718884253365,22.0763,139.96,139.87,7.1493]
[1718884253568,22.0763,139.96,139.88,0.51]
[1718884253791,22.0763,139.96,139.89,0.17]
[1718884254281,22.0763,139.96,139.91,0.17]
[1718884254479,20.0,139.95,139.91,0.51]
[1718884255686,20.0,139.95,139.89,0.17]
[1718884256385,20.0,139.95,139.89,7.3183]
[1718884256584,20.0,139.95,139.91,0.17]
[1718884256972,20.0,139.95,139.91,0.51]
[1718884257183,22.7493,140.0,139.94,0.17]
[1718884257479,22.7493,140.0,139.96,0.17]
[1718884257976,22.7493,140.0,139.94,0.68]
[1718884258176,22.7493,140.0,139.94,7.8258]
[1718884258690,22.2403,140.05,139.94,7.8258]
[1718884259895,20.0,140.04,139.94,7.8258]
[1718884260193,20.0,140.04,139.94,0.68]
[1718884260386,0.34,140.03,139.88,21.8266]
[1718884260593,21.7482,140.03,139.88,21.8266]
[1718884260896,20.0,140.02,139.88,22.7337]
[1718884261115,22.8641,140.01,139.88,22.7337]
[1718884261397,22.8641,139.99,139.84,15.5117]
[1718884261896,0.17,139.97,139.84,22.6625]
[1718884262194,0.51,139.97,139.84,22.6625]
[1718884262489,6.0609,139.94,139.82,7.152]
[1718884262694,6.0609,139.94,139.84,7.151]
[1718884262891,20.0,139.93,139.84,7.151]
[1718884263075,20.0,139.93,139.83,7.1513]
[1718884263276,20.0,139.93,139.8,17.8814]
[1718884263581,20.0,139.93,139.84,0.17]
[1718884263892,20.0,139.93,139.84,0.51]
[1718884265190,20.0,139.93,139.85,0.17]
[1718884265396,20.0,139.93,139.85,0.51]
[1718884265611,20.0,139.93,139.85,0.17]
[1718884266601,20.0,139.93,139.84,0.34]
[1718884267591,20.0,139.93,139.86,7.1499]
[1718884267796,20.0,139.93,139.86,0.17]
[1718884269001,20.0,139.93,139.84,0.17]
[1718884269391,20.0,139.93,139.83,0.17]
[1718884269392,16.2293,139.92,139.83,0.17]
[1718884269701,20.0,139.91,139.83,0.17]
[1718884270198,6.1951,139.9,139.79,7.1532]
[1718884270376,6.1951,139.9,139.75,6.0722]
[1718884270377,20.0,139.89,139.75,6.0722]
[1718884270578,20.0,139.89,139.78,17.8841]
[1718884270780,20.0,139.89,139.75,6.0722]
[1718884271492,20.0,139.89,139.78,0.34]
[1718884271799,20.0,139.89,139.79,7.1534]
[1718884272003,20.0,139.89,139.8,0.34]
[1718884273004,20.0,139.89,139.8,0.17]
[1718884273390,20.0,139.89,139.8,0.34]
[1718884273608,20.0,139.89,139.81,7.4922]
[1718884273796,20.0,139.89,139.81,7.1522]
[1718884273989,20.0,139.89,139.8,7.4929]
[1718884274300,15.3801,139.88,139.78,7.1537]
[1718884274501,20.0,139.87,139.75,6.0722]
[1718884274701,20.0,139.87,139.8,7.1529]
[1718884275110,20.0,139.87,139.81,7.1522]
[1718884275286,20.0,139.87,139.75,27.6222]
[1718884275485,20.0,139.87,139.84,0.17]
[1718884275704,6.1951,139.9,139.84,0.68]
[1718884275892,6.1951,139.9,139.85,7.1501]
[1718884276097,15.8204,139.91,139.86,7.4896]
[1718884276393,15.8204,139.91,139.86,7.3199]
[1718884276594,15.8204,139.91,139.87,0.51]
[1718884276797,15.8204,139.91,139.87,0.17]
[1718884277202,6.263,139.94,139.86,0.68]
[1718884277389,20.0,139.93,139.88,7.1487]
[1718884277592,20.0,139.93,139.89,0.34]
[1718884277783,6.263,139.94,139.89,0.34]
[1718884277991,6.263,139.94,139.86,0.34]
[1718884278302,6.263,139.94,139.87,0.17]
[1718884278804,6.263,139.94,139.87,7.4894]
[1718884279117,6.263,139.94,139.87,7.4891]
[1718884279495,20.0,139.93,139.87,7.4891]
[1718884280413,20.0,139.93,139.87,0.34]
[1718884280924,20.0,139.93,139.87,0.17]
[1718884281125,20.0,139.93,139.87,0.34]
[1718884281295,20.0,139.93,139.88,0.34]
[1718884281612,20.0,139.93,139.89,0.17]
[1718884281993,20.0,139.93,139.89,7.3181]
[1718884282198,15.8516,139.95,139.91,7.1472]
[1718884282445,21.4437,139.98,139.91,7.1472]
[1718884282605,21.4437,139.98,139.89,0.34]
[1718884282916,21.4437,139.98,139.89,7.4881]
[1718884283299,21.4437,139.98,139.89,0.34]
[1718884283506,20.0,139.97,139.89,7.4884]
[1718884283714,20.0,139.97,139.91,0.17]
[1718884283893,20.0,139.97,139.91,7.8273]
[1718884284095,20.0,139.97,139.92,0.17]
[1718884285517,20.0,139.97,139.86,15.7536]
[1718884285694,20.0,139.97,139.87,0.68]
[1718884286123,20.0,139.97,139.86,15.7536]
[1718884286333,0.34,139.96,139.85,7.1503]
[1718884288132,20.0,139.97,139.81,43.2632]
[1718884288436,20.0,139.97,139.9,7.1477]
[1718884288729,20.0,139.97,139.9,7.1479]
[1718884289334,20.0,139.97,139.89,7.1483]